fUSD/lending_fUSD_20260212
["ID","MTS","AMOUNT","RATE_DAILY","PERIOD"]
[405119571,1770861033262,-745.46461875,0.00016166,2]
[405119572,1770861033271,-745.46461875,0.00016166,2]
[405119573,1770861033281,-745.46461875,0.00016166,2]
[405119574,1770861033291,-745.46461875,0.00016166,2]
[405119575,1770861033301,-2236.39385626,0.00016166,2]
[405119576,1770861033310,-2236.39385626,0.00016166,2]
[405119577,1770861033320,-2236.39385626,0.00016166,2]
[405119578,1770861033329,-2236.39385626,0.00016166,2]
[405119579,1770861033338,-2236.39385626,0.00016166,2]
[405119580,1770861033348,-2236.39385626,0.00016166,2]
[405119581,1770861033357,-2236.39385626,0.00016166,2]
[405119582,1770861033367,-2236.39385626,0.00016166,2]
[405119583,1770861033376,-2236.39385626,0.00016166,2]
[405119584,1770861033386,-500.0,0.00016166,2]
[405119585,1770861033396,-500.0,0.00016166,2]
[405119586,1770861033406,-172.16513014,0.00016166,2]
[405119587,1770861033416,-503.0235878,0.00016166,2]
[405119588,1770861033425,-500.0,0.00016166,2]
[405119589,1770861033434,-570.33852547,0.00016166,2]
[405119590,1770861033443,-500.0,0.00016166,2]
[405119591,1770861033453,-444.61928431,0.00016166,2]
[405119592,1770861033462,-500.0,0.00016166,2]
[405119593,1770861033471,-444.61928431,0.00016166,2]
[405119594,1770861033481,-122174.9848854,0.00016167,2]
[405119595,1770861033491,-508.39121039,0.00016173,2]
[405119596,1770861033500,-503.17828709,0.00016173,2]
[405119597,1770861033509,-504.06405415,0.00016173,2]
[405119598,1770861033519,-502.26718226,0.00016173,2]
[405119599,1770861033528,-503.58551627,0.00016173,2]
[405119600,1770861033538,-500.0,0.00016173,2]
[405119601,1770861033548,-160.17367828,0.00016173,2]
[405119602,1770861033558,-160.31783146,0.00016173,2]
[405119603,1770861033567,-160.31878935,0.00016173,2]
[405119604,1770861033577,-500.0,0.00016173,2]
[405119605,1770861033586,-160.31533727,0.00016173,2]
[405119606,1770861033596,-160.3178322,0.00016173,2]
[405119607,1770861033605,-500.0,0.00016173,2]
[405119608,1770861033615,-507.02944341,0.00016173,2]
[405119609,1770861033624,-507.79483991,0.00016173,2]
[405119610,1770861033633,-643.42172121,0.00016173,2]
[405119611,1770861033642,-160.31783463,0.00016173,2]
[405119612,1770861033652,-600.16199619,0.00016173,2]
[405119613,1770861033662,-505.74989449,0.00016173,2]
[405119614,1770861033671,-503.50074867,0.00016173,2]
[405119615,1770861033680,-150.0,0.000163,2]
[405119616,1770861033690,-2351.0,0.00016329,2]
[405119617,1770861033699,-500.0,0.00016356,2]
[405119618,1770861033925,-500.0,0.00016356,2]
[405119619,1770861033936,-841.0,0.000164,2]
[405119620,1770861033947,-157.2289713,0.00016432,2]
[405119621,1770861033957,-1364.4,0.00016438,2]
[405119622,1770861033967,-487.18,0.00016438,2]
[405119623,1770861033976,-1000.0,0.00016438,2]
[405119624,1770861033985,-160.0,0.00016444,2]
[405119625,1770861033994,-1811.44898659,0.00016458,2]
[405119626,1770861034004,-12834.38586811,0.00016464,2]
[405119627,1770861034013,-167.98860452,0.0001653,2]
[405119628,1770861034022,-158.57,0.00016586,2]
[405119629,1770861034031,-2000.0,0.000166,2]
[405119630,1770861034040,-151.0,0.00016642,2]
[405119631,1770861034050,-3613.86588029,0.00016669,2]
[405119632,1770861034058,-251.5955186,0.00016681,2]
[405119633,1770861034067,-1000.0,0.00016712,2]
[405119634,1770861034076,-7769.18646533,0.00016719,2]
[405119635,1770861034091,-19491.73747827,0.00016719,2]
[405119636,1770861034101,-160.0,0.0001672,2]
[405119637,1770861034110,-1000.0,0.00016721,2]
[405119638,1770861034120,-1000.0,0.00016721,2]
[405119639,1770861034129,-165.80776004,0.00016769,2]
[405119640,1770861034141,-2000.0,0.000168,2]
[405119641,1770861034151,-1811.44898659,0.00016938,2]
[405119642,1770861034160,-12834.38586811,0.00016943,2]
[405119643,1770861034169,-1364.4,0.00016944,2]
[405119644,1770861034179,-1000.0,0.00016986,2]
[405119645,1770861034188,-167.98860452,0.00016987,2]
[405119646,1770861034199,-3000.0,0.00017,2]
[405119647,1770861034209,-841.0,0.0001704,2]
[405119648,1770861034220,-192.34,0.00017041,2]
[405119649,1770861034230,-250.5,0.00017062,2]
[405119650,1770861034241,-290.42,0.00017102,2]
[405119651,1770861034252,-216.64836974,0.0001715,2]
[405119652,1770861034261,-250.0,0.00017156,2]
[405119653,1770861034271,-1288.0,0.0001716,2]
[405119654,1770861034280,-3487.0,0.0001716,2]
[405119655,1770861034290,-618.465,0.0001716,2]
[405119656,1770861034300,-1337.0,0.0001716,2]
[405119657,1770861034309,-150.328,0.0001716,2]
[405119658,1770861034319,-1274.751,0.0001716,2]
[405119659,1770861034328,-919.745,0.0001716,2]
[405119660,1770861034338,-1211.319,0.0001716,2]
[405119661,1770861034347,-213.0,0.0001716,2]
[405119662,1770861034356,-151.0,0.0001716,2]
[405119663,1770861034365,-150.0,0.0001716,2]
[405119664,1770861034375,-5967.0,0.0001716,2]
[405119665,1770861034384,-150.0,0.0001716,2]
[405119666,1770861034393,-413.135,0.0001716,2]
[405119667,1770861034402,-157.2289713,0.00017166,2]
[405119668,1770861034412,-245.0,0.00017181,2]
[405119669,1770861034421,-256.6157367,0.000172,2]
[405119670,1770861034431,-987.0,0.000172,2]
[405119671,1770861034441,-1000.0,0.0001726,2]
[405119672,1770861034450,-154.96504816,0.00017268,2]
[405119673,1770861034460,-501.8,0.00017268,2]
[405119674,1770861034470,-1500.0,0.00017268,2]
[405119675,1770861034481,-227.3,0.00017283,2]
[405119676,1770861034491,-3613.86588029,0.00017285,2]
[405119677,1770861034501,-478.64,0.0001731,2]
[405119678,1770861034511,-2829.0,0.0001736,2]
[405119679,1770861034521,-2829.0,0.0001736,2]
[405119680,1770861034532,-2000.0,0.000174,2]
[405119681,1770861034542,-166.67,0.00017419,2]
[405119682,1770861034551,-1811.44898659,0.00017419,2]
[405119683,1770861034561,-12834.38586811,0.00017421,2]
[405119684,1770861034570,-226.23,0.00017429,2]
[405119685,1770861034580,-167.98860452,0.00017443,2]
[405119686,1770861034590,-1364.4,0.0001745,2]
[405119687,1770861034599,-1600.0,0.00017452,7]
[405119688,1770861034608,-158.57,0.00017507,2]
[405119689,1770861034617,-1000.0,0.00017534,2]
[405119690,1770861034626,-841.0,0.0001754,2]
[405119691,1770861034636,-386.0,0.00017593,2]
[405119692,1770861034647,-2000.0,0.000176,2]
[405119693,1770861034656,-1199.9,0.00017612,2]
[405119694,1770861034666,-4202.65091527,0.0001764,2]
[405119695,1770861034675,-1246.0,0.0001768,2]
[405119696,1770861034685,-192.34,0.00017681,2]
[405119697,1770861034695,-1000.0,0.00017692,2]
[405119698,1770861034705,-150.0,0.00017703,2]
[405119699,1770861034716,-150.0,0.00017706,2]
[405119700,1770861034725,-1000.0,0.00017707,2]
[405119701,1770861034734,-150.0,0.0001771,2]
[405119702,1770861034741,-150.0,0.00017712,2]
[405119703,1770861034749,-1000.0,0.00017723,2]
[405119704,1770861034757,-500.0,0.00017726,7]
[405119705,1770861034766,-1000.0,0.0001773,2]
[405119706,1770861034774,-1000.0,0.00017741,2]
[405119707,1770861034782,-386.0,0.00017742,2]
[405119708,1770861034790,-1000.0,0.00017749,2]
[405119709,1770861034801,-1000.0,0.00017764,2]
[405119710,1770861034812,-386.0,0.00017765,2]
[405119711,1770861034822,-290.42,0.00017765,2]
[405119712,1770861034833,-1000.0,0.00017766,2]
[405119713,1770861034844,-150.0,0.00017777,2]
[405119714,1770861034853,-150.0,0.00017784,2]
[405119715,1770861034862,-1000.0,0.00017792,2]
[405119716,1770861034871,-1000.0,0.00017793,2]
[405119717,1770861034882,-1000.0,0.000178,2]
[405119718,1770861034892,-1000.0,0.00017801,2]
[405119719,1770861034901,-1000.0,0.00017806,2]
[405119720,1770861034911,-1000.0,0.00017806,2]
[405119721,1770861034920,-500.0,0.00017808,2]
[405119722,1770861034929,-1000.0,0.00017808,2]
[405119723,1770861034938,-998.87033063,0.00017816,2]
[405119724,1770861034948,-151.0,0.0001782,2]
[405119725,1770861034958,-151.0,0.0001782,2]
[405119726,1770861034967,-3681.80181243,0.0001782,10]
[405119727,1770861034976,-2000.0,0.0001782,2]
[405119728,1770861034985,-2000.0,0.0001782,2]
[405119729,1770861034995,-2752.90549689,0.0001782,2]
[405119730,1770861035005,-386.0,0.00017821,2]
[405119731,1770861035014,-150.0,0.00017827,2]
[405119732,1770861035023,-150.0,0.0001783,2]
[405119733,1770861035033,-150.0,0.00017831,2]
[405119734,1770861035043,-150.0,0.00017833,2]
[405119735,1770861035053,-1000.0,0.00017834,2]
[405119736,1770861035062,-150.0,0.00017837,2]
[405119737,1770861035071,-151.0,0.00017838,2]
[405119738,1770861035081,-1000.0,0.00017852,2]
[405119739,1770861035090,-386.0,0.00017853,2]
[405119740,1770861035100,-200.0,0.00017855,2]
[405119741,1770861035110,-200.0,0.00017856,2]
[405119742,1770861035120,-500.0,0.00017863,2]
[405119743,1770861035130,-1000.0,0.0001787,2]
[405119744,1770861035140,-160.31783216,0.00017873,2]
[405119745,1770861035149,-1527.66,0.00017873,2]
[405119746,1770861035159,-1000.0,0.0001789,2]
[405119747,1770861035169,-151.0,0.000179,2]
[405119748,1770861035178,-151.0,0.000179,2]
[405119749,1770861035187,-305.583,0.000179,2]
[405119750,1770861035196,-334.91702412,0.000179,3]
[405119751,1770861035205,-157.2289713,0.000179,2]
[405119752,1770861035214,-1114.02,0.000179,2]
[405119753,1770861035223,-1811.44898659,0.000179,2]
[405119754,1770861035232,-742.37062375,0.000179,2]
[405119755,1770861035243,-12834.38586811,0.000179,2]
[405119756,1770861035253,-7596.96556152,0.000179,2]
[405119757,1770861035263,-7596.96556152,0.000179,2]
[405119758,1770861035272,-7596.96556152,0.000179,2]
[405119759,1770861035282,-7596.96556152,0.000179,2]
[405119760,1770861035291,-7596.96556152,0.000179,2]
[405119761,1770861035301,-7596.96556152,0.000179,2]
[405119762,1770861035310,-7596.96556152,0.000179,2]
[405119763,1770861035320,-6940.21708185,0.000179,2]
[405119764,1770861035333,-656.74847967,0.000179,2]
[405119765,1770861035342,-7596.96556152,0.000179,2]
[405119766,1770861035351,-7596.96556152,0.000179,2]
[405119767,1770861035361,-3613.86588029,0.000179,2]
[405119768,1770861035370,-7596.96556152,0.000179,2]
[405119769,1770861035380,-7596.96556152,0.000179,2]
[405119770,1770861035390,-167.98860452,0.000179,2]
[405119771,1770861035399,-4876.65440469,0.000179,2]
[405119772,1770861035409,-177.42694372,0.000179,3]
[405119773,1770861035419,-638.59571208,0.000179,2]
[405119774,1770861035428,-500.0,0.000179,2]
[405119775,1770861035438,-500.0,0.000179,2]
[405119776,1770861035447,-232.88924106,0.000179,2]
[405119777,1770861035457,-1000.0,0.00017903,2]
[405119778,1770861035466,-386.0,0.00017904,2]
[405119779,1770861035476,-150.0,0.00017906,2]
[405119780,1770861035485,-386.0,0.00017913,2]
[405119781,1770861035495,-500.0,0.00017918,2]
[405119782,1770861035504,-1000.0,0.00017921,2]
[405119783,1770861035513,-1000.0,0.00017924,2]
[405119784,1770861035522,-150.0,0.00017931,2]
[405119785,1770861035531,-1137.0414308,0.0001794,2]
[405119786,1770861035540,-1000.0,0.00017944,2]
[405119787,1770861035549,-150.0,0.0001795,2]
[405119788,1770861035559,-150.0,0.00017951,2]
[405119789,1770861035568,-1364.4,0.00017955,2]
[405119790,1770861035577,-150.0,0.00017956,2]
[405119791,1770861035588,-3292.0,0.00017962,2]
[405119792,1770861035597,-165.80776004,0.00017967,2]
[405119793,1770861035606,-700.0,0.0001797,2]
[405119794,1770861035616,-500.0,0.0001797,2]
[405119795,1770861035626,-700.0,0.0001797,2]
[405119796,1770861035635,-500.0,0.0001797,2]
[405119797,1770861035645,-700.0,0.0001797,2]
[405119798,1770861035654,-500.0,0.0001797,2]
[405119799,1770861035664,-500.0,0.0001797,2]
[405119800,1770861035673,-500.0,0.0001797,2]
[405119801,1770861035682,-500.0,0.0001797,2]
[405119802,1770861035691,-500.0,0.0001797,2]
[405119803,1770861035701,-500.0,0.0001797,2]
[405119804,1770861035712,-500.0,0.0001797,2]
[405119805,1770861035722,-616.29452502,0.0001797,2]
[405119806,1770861035741,-710.23725132,0.0001797,2]
[405119807,1770861035757,-500.0,0.00017972,2]
[405119808,1770861035766,-1050.0,0.00017973,2]
[405119809,1770861035777,-153.12901339,0.00017973,2]
[405119810,1770861035787,-216.64836974,0.0001799,2]
[405119811,1770861035796,-150.0,0.00017999,2]
[405119812,1770861035806,-300.0,0.00017999,2]
[405119813,1770861035817,-300.0,0.00017999,2]
[405119814,1770861035829,-300.0,0.00017999,2]
[405119815,1770861035841,-666.0,0.00017999,2]
[405119816,1770861035851,-300.0,0.00017999,2]
[405119817,1770861035861,-300.0,0.00017999,2]
[405119818,1770861035871,-308.09865835,0.00017999,2]
[405119819,1770861035881,-267.40250045,0.00017999,2]
[405119820,1770861035890,-300.0,0.00017999,2]
[405119821,1770861035900,-300.0,0.00017999,2]
[405119822,1770861035910,-167.56904293,0.00017999,2]
[405119823,1770861035919,-109974.28662954,0.00018,2]
[405119824,1770861035933,-158252.29770049,0.00018,2]
[405119825,1770861035944,-1254.41808677,0.00018,2]
[405119826,1770861035963,-305.85181942,0.00018,2]
[405119827,1770861037822,190.0,0.0003561,120]
[405119834,1770861038630,-401.616215,0.00018,2]
[405119835,1770861038654,-222629.9609556,0.00018,2]
[405119836,1770861038666,-558.38385669,0.00018,2]
[405119837,1770861038777,-2204.41599587,0.00018,2]
[405119838,1770861038789,-829.53756362,0.00018,2]
[405119839,1770861038801,-1514.74391106,0.00018,2]
[405119843,1770861040247,-565.21364233,0.0001716,2]
[405119844,1770861040277,-1883.78635767,0.0001716,2]
[405119845,1770861040287,-2066.82117207,0.00018,2]
[405119847,1770861043207,-1000.0,0.0001357,2]
[405119848,1770861043217,-1037918.89253966,0.00018,2]
[405119849,1770861043226,-264.69,0.00018,7]
[405119850,1770861043237,-19464.92023854,0.00018,2]
[405119851,1770861043936,-493.64798522,0.00018,2]
[405119852,1770861043948,-2933.58524127,0.00018,2]
[405119853,1770861045708,-48615.93366503,0.00018,2]
[405119854,1770861045720,-2020.869312,0.00018,2]
[405119855,1770861045776,-5859.80000033,0.00018,2]
[405119873,1770861202825,1214.68174217,0.000356,120]
[405119876,1770861365331,500.0,0.000356,120]
[405119879,1770861385170,500.0,0.000356,120]
[405119882,1770861433616,520.0,0.00035616,120]
[405119883,1770861580038,2669.499,0.00035616,120]
[405119888,1770861680278,187.08781316,0.000354,120]
[405119891,1770861725806,653.0,0.00035,120]
[405119892,1770861742955,153.12181551,0.00035616,120]
[405119893,1770861766724,2500.0,0.00035616,120]
[405119894,1770861773197,2500.0,0.00035616,120]
[405119895,1770861780777,2500.0,0.00035616,120]
[405119896,1770861792034,2895.0,0.00035616,120]
[405119899,1770861951542,3000.0,0.00035616,120]
[405119900,1770861959693,731.76494851,0.00035616,120]
[405119901,1770861961930,3000.0,0.00035616,120]
[405119903,1770861970039,3000.0,0.00035616,120]
[405119905,1770861975844,3000.0,0.00035616,120]
[405119906,1770861981843,3000.0,0.00035616,120]
[405119910,1770861991732,3000.0,0.00035616,120]
[405119912,1770862005380,2777.0,0.00035616,120]
[405119914,1770862013213,2000.0,0.00035616,120]
[405119916,1770862033256,2000.0,0.00035616,120]
[405119941,1770862071744,668.85779605,0.00035616,120]
[405119942,1770862138891,299.96406822,0.00035616,120]
[405119973,1770862231615,-165.5862135,0.0001347,2]
[405119974,1770862231625,-261.0,0.0001347,2]
[405119975,1770862231635,-250.0,0.00013485,2]
[405119976,1770862231645,-269.67,0.000135,2]
[405119977,1770862231655,-1000.0,0.0001357,2]
[405119978,1770862231664,-261.58062107,0.00013673,2]
[405119979,1770862231674,-502.38550945,0.00013673,2]
[405119980,1770862231684,-165.58621349,0.00014603,2]
[405119981,1770862231694,-250.0,0.00014817,2]
[405119982,1770862231703,-250.0,0.00015,2]
[405119983,1770862231713,-200.0,0.00015544,2]
[405119984,1770862231723,-300.0,0.00015599,2]
[405119985,1770862231733,-1200.0,0.00015599,2]
[405119986,1770862231742,-4047.92305919,0.000156,2]
[405119989,1770862232442,-1000.0,0.000156,2]
[405119990,1770862232470,-1379.14694081,0.000156,2]
[405119991,1770862232480,-270.53592253,0.000157,2]
[405119992,1770862232490,-342.85747606,0.000157,2]
[405119993,1770862232501,-944.85686405,0.000157,2]
[405119994,1770862232511,-360.93786444,0.000157,2]
[405119995,1770862232520,-191.00174593,0.000157,2]
[405119996,1770862232531,-194.84565961,0.000157,2]
[405119997,1770862232542,-318.98758533,0.000157,2]
[405119998,1770862232552,-175.6260912,0.000157,2]
[405119999,1770862232562,-165.58621349,0.00015736,2]
[405120000,1770862232577,-1153.21575139,0.00015736,2]
[405120001,1770862232587,-2589.57541257,0.00015736,2]
[405120002,1770862232597,-303.34985327,0.00015736,2]
[405120003,1770862232607,-164.83876298,0.00015736,2]
[405120004,1770862232616,-258.58201699,0.000158,2]
[405120005,1770862232626,-866.02854735,0.000158,2]
[405120006,1770862232636,-323.73122718,0.000158,2]
[405120007,1770862232646,-340.01852973,0.000158,2]
[405120008,1770862232655,-999.99,0.000158,2]
[405120009,1770862232664,-150.99,0.000158,2]
[405120010,1770862232674,-9999.99,0.000158,2]
[405120011,1770862232684,-150.0,0.00015808,2]
[405120012,1770862232694,-161.57525688,0.00015826,2]
[405120013,1770862232704,-500.0,0.00015835,2]
[405120014,1770862232713,-242.05238176,0.00015835,2]
[405120015,1770862232723,-500.0,0.00015835,2]
[405120016,1770862232732,-500.0,0.00015835,2]
[405120017,1770862232743,-373.70234822,0.00015835,2]
[405120018,1770862232756,-500.0,0.00015835,2]
[405120019,1770862232766,-288.97399896,0.00015835,2]
[405120020,1770862232776,-500.0,0.00015835,2]
[405120021,1770862232786,-500.0,0.00015835,2]
[405120022,1770862232796,-500.0,0.00015835,2]
[405120023,1770862232806,-500.0,0.00015835,2]
[405120024,1770862232815,-500.0,0.00015835,2]
[405120025,1770862232826,-500.0,0.00015835,2]
[405120026,1770862232835,-500.0,0.00015835,2]
[405120027,1770862232845,-500.0,0.00015835,2]
[405120028,1770862232855,-500.0,0.00015835,2]
[405120029,1770862232867,-500.0,0.00015835,2]
[405120030,1770862232877,-500.0,0.00015835,2]
[405120031,1770862232887,-500.0,0.00015835,2]
[405120032,1770862232897,-500.0,0.00015835,2]
[405120033,1770862232907,-500.0,0.00015835,2]
[405120034,1770862232917,-500.0,0.00015835,2]
[405120035,1770862232927,-500.0,0.00015835,2]
[405120036,1770862232936,-500.0,0.00015835,2]
[405120037,1770862232950,-500.0,0.00015835,2]
[405120038,1770862232960,-500.0,0.00015835,2]
[405120039,1770862232969,-500.0,0.00015835,2]
[405120040,1770862232979,-500.0,0.00015835,2]
[405120041,1770862232988,-500.0,0.00015835,2]
[405120042,1770862232998,-500.0,0.00015835,2]
[405120043,1770862233007,-500.0,0.00015835,2]
[405120044,1770862233017,-160.89376851,0.00015835,2]
[405120045,1770862233026,-500.0,0.00015835,2]
[405120046,1770862233035,-500.0,0.00015835,2]
[405120047,1770862233045,-500.0,0.00015835,2]
[405120048,1770862233055,-300.0,0.00015835,2]
[405120049,1770862233064,-500.0,0.00015835,2]
[405120050,1770862233074,-500.0,0.00015835,2]
[405120051,1770862233084,-500.0,0.00015835,2]
[405120052,1770862233094,-466.64382677,0.00015835,2]
[405120053,1770862233103,-60771.45872008,0.00015836,2]
[405120056,1770862237750,-640.69,0.00015836,2]
[405120057,1770862237800,-16088.32041611,0.00015836,2]
[405120058,1770862237811,-425.47017791,0.00015836,2]
[405120059,1770862237854,-1547.95,0.00015836,2]
[405120064,1770862239734,-432.56378941,0.00015836,2]
[405120065,1770862239746,-782.57676608,0.00015836,2]
[405120074,1770862245732,-300.0,0.00015836,2]
[405120107,1770862764013,355.0,0.00035616,120]
[405120108,1770862771095,533.0,0.00035616,120]
[405120110,1770862818843,553.0,0.00035616,120]
[405120111,1770862848427,1000.0,0.000354,120]
[405120112,1770862851632,455.0,0.00035616,120]
[405120119,1770862933824,2500.0,0.000354,120]
[405120123,1770862982338,2442.0,0.000356,120]
[405120125,1770862986650,642.82454239,0.00012501,2]
[405120126,1770862994223,500.0,0.000356,120]
[405120133,1770863144248,10785.34980057,0.000356,120]
[405120135,1770863203567,4053.0,0.00035616,120]
[405120136,1770863218802,155.57232644,0.0003013,120]
[405120158,1770863247547,1000.0,0.00035616,120]
[405120159,1770863253152,1000.0,0.00035616,120]
[405120160,1770863255584,1000.0,0.00035616,120]
[405120161,1770863258849,1000.0,0.00035616,120]
[405120162,1770863265210,1000.0,0.00035616,120]
[405120163,1770863270264,1000.0,0.00035616,120]
[405120164,1770863273180,1000.0,0.00035616,120]
[405120165,1770863280517,1298.0,0.00035616,120]
[405120167,1770863323714,358.76988545,0.0003488,120]
[405120258,1770863431865,-1000.0,0.00014775,2]
[405120259,1770863431875,-272.0,0.00014775,2]
[405120260,1770863431887,-150.0,0.00014858,2]
[405120261,1770863431898,-156.57,0.00015344,2]
[405120262,1770863431908,-924.8913006,0.00015399,2]
[405120263,1770863431970,-275.1086994,0.00015399,2]
[405120264,1770863431979,-257.71815741,0.000154,2]
[405120265,1770863431991,-345.51780687,0.000154,2]
[405120266,1770863432003,-1662.64252171,0.000154,2]
[405120267,1770863432012,-768.81050094,0.000154,2]
[405120268,1770863432022,-252.7915444,0.000154,2]
[405120269,1770863432032,-205.26220082,0.0001549,2]
[405120270,1770863432042,-151.0,0.00015497,2]
[405120271,1770863432052,-300.0,0.00015498,2]
[405120272,1770863432061,-187.6390038,0.000155,2]
[405120273,1770863432078,-3178.29500462,0.000155,2]
[405120315,1770863438326,-1309.18409393,0.000155,2]
[405120316,1770863438338,-341.4894085,0.000155,2]
[405120323,1770863440207,-251.47933527,0.000155,2]
[405120452,1770863443669,-2784.91185388,0.000155,2]
[405120453,1770863443679,-5218.98378017,0.000155,2]
[405120455,1770863445848,-7545.32717854,0.000155,2]
[405120457,1770863465572,16080.76933315,0.00035,120]
[405120460,1770863482748,1000.0,0.00035616,120]
[405120461,1770863487069,1000.0,0.00035616,120]
[405120462,1770863488475,1000.0,0.00035616,120]
[405120464,1770863491322,1000.0,0.00035616,120]
[405120466,1770863527899,152.0,0.000129,33]
[405120467,1770863528202,152.0,0.00012797,32]
[405120468,1770863528566,152.0,0.00012694,31]
[405120469,1770863529189,152.0,0.00012591,30]
[405120470,1770863529387,152.0,0.00012488,29]
[405120471,1770863529550,152.0,0.00012385,28]
[405120472,1770863529927,152.0,0.00012282,27]
[405120473,1770863530173,152.0,0.00012178,26]
[405120474,1770863530535,152.0,0.00012075,25]
[405120475,1770863530842,152.0,0.00011972,24]
[405120476,1770863531169,152.0,0.00011869,23]
[405120477,1770863531453,152.0,0.00011766,22]
[405120478,1770863531763,152.0,0.00011663,21]
[405120479,1770863532065,152.0,0.0001156,20]
[405120480,1770863533045,152.0,0.00011457,19]
[405120481,1770863533411,152.0,0.00011354,18]
[405120482,1770863533674,152.0,0.00011251,17]
[405120483,1770863533997,152.0,0.00011148,16]
[405120484,1770863534308,152.0,0.00011045,15]
[405120485,1770863534621,152.0,0.00010942,14]
[405120486,1770863535981,152.0,0.00010839,13]
[405120487,1770863536395,152.0,0.00010735,12]
[405120488,1770863536655,152.0,0.00010632,11]
[405120489,1770863536786,152.0,0.00010529,10]
[405120490,1770863536986,152.0,0.00010426,9]
[405120491,1770863537079,152.0,0.00010323,8]
[405120492,1770863537247,152.0,0.0001022,7]
[405120493,1770863537351,152.0,0.00010117,6]
[405120494,1770863537653,152.0,0.00010014,5]
[405120495,1770863537957,152.0,9.911e-05,4]
[405120496,1770863538620,152.0,9.808e-05,3]
[405120497,1770863538724,163.08298533,0.000129,5]
[405120498,1770863583249,240.44378235,0.00019125,90]
[405120506,1770863825339,1000.0,0.00035616,120]
[405120507,1770863863196,173.07,0.00035616,120]
[405120508,1770863888344,10000.0,0.00035616,120]
[405120509,1770863990324,167.83,0.000356,120]
[405120510,1770864012600,500.0,0.00035616,120]
[405120511,1770864012835,500.0,0.00035616,120]
[405120512,1770864013240,376.64431873,0.00035616,120]
[405120513,1770864013510,526.02285817,0.00035616,120]
[405120514,1770864013558,500.0,0.00035616,120]
[405120515,1770864013740,500.0,0.00035616,120]
[405120516,1770864014147,500.0,0.00035616,120]
[405120517,1770864014247,500.0,0.00035616,120]
[405120518,1770864014458,500.0,0.00035616,120]
[405120519,1770864014680,500.0,0.00035616,120]
[405120520,1770864014731,582.10660716,0.00035616,120]
[405120521,1770864014944,500.0,0.00035616,120]
[405120522,1770864015189,500.0,0.00035616,120]
[405120523,1770864015440,500.0,0.00035616,120]
[405120524,1770864015692,500.0,0.00035616,120]
[405120525,1770864015921,500.0,0.00035616,120]
[405120526,1770864016165,500.0,0.00035616,120]
[405120527,1770864016727,500.0,0.00035616,120]
[405120528,1770864016780,500.0,0.00035616,120]
[405120529,1770864016963,500.0,0.00035616,120]
[405120530,1770864017094,500.0,0.00035616,120]
[405120531,1770864017208,500.0,0.00035616,120]
[405120532,1770864017266,568.30497468,0.00035616,120]
[405120533,1770864017327,500.0,0.00035616,120]
[405120534,1770864017405,500.0,0.00035616,120]
[405120535,1770864017453,475.04617017,0.00035616,120]
[405120536,1770864017647,475.64043956,0.00035616,120]
[405120537,1770864017757,500.0,0.00035616,120]
[405120538,1770864017897,500.0,0.00035616,120]
[405120539,1770864017970,500.0,0.00035616,120]